bitfinex-derivatives/quotes_BTCF0:USTF0_20250417
["timestamp","ask_amount","ask_price","bid_price","bid_amount"]
[1744851295769,0.1187503,84217.0,84216.0,0.32440979]
[1744851296165,0.1781204,84220.0,84219.0,0.1187475]
[1744851296378,0.0593736,84220.0,84219.0,0.2887475]
[1744851296675,0.0593736,84220.0,84219.0,0.2889075]
[1744851297474,0.0593736,84220.0,84219.0,0.2909075]
[1744851298082,0.3608,84226.0,84225.0,0.118739]
[1744851298277,0.1187328,84230.0,84229.0,0.118732]
[1744851298781,0.1504328,84230.0,84229.0,0.118732]
[1744851299185,0.1187362,84228.0,84227.0,0.1187358]
[1744851299485,0.1781099,84226.0,84225.0,0.1187381]
[1744851299789,0.5389099,84226.0,84225.0,0.1287381]
[1744851300087,0.5706099,84226.0,84225.0,0.1297381]
[1744851300683,0.5706099,84226.0,84225.0,0.1287381]
[1744851301589,0.5706099,84226.0,84225.0,0.1187381]
[1744851301980,0.1187419,84224.0,84223.0,0.118741]
[1744851302181,0.0593722,84222.0,84219.0,0.1782775]
[1744851302383,0.1187461,84220.0,84219.0,0.1783575]
[1744851302887,0.1187461,84220.0,84219.0,0.00016]
[1744851303089,0.2111461,84220.0,84219.0,0.00024]
[1744851303690,0.2111461,84220.0,84219.0,0.00124]
[1744851304192,0.2121461,84220.0,84219.0,0.1189875]
[1744851305387,0.2121461,84220.0,84219.0,0.00024]
[1744851305791,0.1187489,84218.0,84217.0,0.1187498]
[1744851305978,0.4795489,84218.0,84217.0,0.1187498]
[1744851306183,0.4795489,84218.0,84217.0,0.1189098]
[1744851307884,0.56324352,84218.0,84217.0,0.1189098]
[1744851309194,0.56324352,84218.0,84217.0,0.00016]
[1744851310488,0.56324352,84218.0,84217.0,0.00024]
[1744851310691,0.56424352,84218.0,84217.0,0.00024]
[1744851311396,0.56324352,84218.0,84217.0,0.00024]
[1744851311694,0.56424352,84218.0,84217.0,0.00024]
[1744851312594,0.20344352,84218.0,84217.0,0.00024]
[1744851312798,0.56424352,84218.0,84217.0,0.00024]
[1744851312982,0.56424352,84218.0,84217.0,0.03054]
[1744851313295,0.56424352,84218.0,84217.0,0.1492903]
[1744851313491,0.56424352,84218.0,84217.0,0.1812903]
[1744851314797,0.56324352,84218.0,84217.0,0.1822903]
[1744851315300,0.4795489,84218.0,84217.0,0.1822903]
[1744851315699,0.5100489,84218.0,84217.0,0.1822903]
[1744851316085,0.5100489,84218.0,84217.0,0.2135903]
[1744851316295,0.5100489,84218.0,84217.0,0.2125903]
[1744851318399,0.1492489,84218.0,84217.0,0.2125903]
[1744851318896,0.30052833,84218.0,84217.0,0.2125903]
[1744851322197,0.30052833,84218.0,84217.0,0.06184]
[1744851322405,0.30052833,84218.0,84217.0,0.06176]
[1744851322597,0.30052833,84218.0,84217.0,0.06184]
[1744851322799,0.1492489,84218.0,84217.0,0.1805903]
[1744851325406,0.1187489,84218.0,84217.0,0.1805903]
[1744851325713,0.1187489,84218.0,84217.0,0.1803503]
[1744851326206,0.1188289,84218.0,84217.0,0.1803503]
[1744851326613,0.1188289,84218.0,84217.0,0.1805103]
[1744851326806,0.1187489,84218.0,84217.0,0.1805103]
[1744851327105,0.1187489,84218.0,84217.0,0.1815103]
[1744851327106,0.1188289,84218.0,84217.0,0.1815103]
[1744851327503,0.1188289,84218.0,84217.0,0.1825103]
[1744851328609,0.1188289,84218.0,84217.0,0.1835103]
[1744851330703,0.1187489,84218.0,84217.0,0.1833503]
[1744851331009,0.1187489,84218.0,84217.0,0.1823503]
[1744851331213,0.1187489,84218.0,84217.0,0.1833503]
[1744851331512,0.1187489,84218.0,84217.0,0.1835103]
[1744851332808,0.1187489,84218.0,84217.0,0.06476]
[1744851333013,0.1187489,84218.0,84217.0,0.06484]
[1744851333307,0.1187489,84218.0,84217.0,0.06384]
[1744851333503,0.1187489,84218.0,84217.0,0.03346]
[1744851333708,0.1822489,84218.0,84217.0,0.03354]
[1744851334118,0.1822489,84218.0,84217.0,0.03254]
[1744851334411,0.1822489,84218.0,84217.0,0.03246]
[1744851334612,0.1822489,84218.0,84217.0,0.06304]
[1744851335112,0.1822489,84218.0,84217.0,0.06104]
[1744851335513,0.1832489,84218.0,84217.0,0.06104]
[1744851335709,0.1832489,84218.0,84217.0,0.0608]
[1744851336316,0.1832489,84218.0,84217.0,0.06096]
[1744851337415,0.1512489,84218.0,84217.0,0.1797103]
[1744851338712,0.1502489,84218.0,84217.0,0.1797103]
[1744851341011,0.1502489,84218.0,84217.0,0.1795503]
[1744851341312,0.1502489,84218.0,84217.0,0.1797103]
[1744851342213,0.1502489,84218.0,84217.0,0.1807103]
[1744851345416,0.1502489,84218.0,84217.0,0.1817103]
[1744851345817,0.1502489,84218.0,84217.0,0.1815503]
[1744851346014,0.1502489,84218.0,84217.0,0.1805503]
[1744851346224,0.1187489,84218.0,84217.0,0.1817103]
[1744851346919,0.1187489,84218.0,84217.0,0.1807103]
[1744851347120,0.1188289,84218.0,84217.0,0.1817103]
[1744851348922,0.1495289,84218.0,84217.0,0.1827103]
[1744851350725,0.1494489,84218.0,84217.0,0.1825503]
[1744851351130,0.1494489,84218.0,84217.0,0.1827103]
[1744851351825,0.1494489,84218.0,84217.0,0.1817103]
[1744851352027,0.1494489,84218.0,84217.0,0.1827103]
[1744851353535,0.1494489,84218.0,84217.0,0.1817103]
[1744851354036,0.1494489,84218.0,84217.0,0.1807103]
[1744851354539,0.1494489,84218.0,84217.0,0.1797103]
[1744851354738,0.1494489,84218.0,84217.0,0.1817103]
[1744851354938,0.1494489,84218.0,84217.0,0.1827103]
[1744851355733,0.1494489,84218.0,84217.0,0.1825503]
[1744851356542,0.1494489,84218.0,84217.0,0.1827103]
[1744851357143,0.1494489,84218.0,84217.0,0.1807103]
[1744851357334,0.1494489,84218.0,84217.0,0.1827103]
[1744851358737,0.1187489,84218.0,84217.0,0.1827103]
[1744851361148,0.1187489,84218.0,84217.0,0.1807103]
[1744851361439,0.1187489,84218.0,84217.0,0.1795503]
[1744851362143,0.1490489,84218.0,84217.0,0.1795503]
[1744851362343,0.1490489,84218.0,84217.0,0.1797103]
[1744851365933,0.1490489,84218.0,84217.0,0.1795503]
[1744851366347,0.23274484,84218.0,84217.0,0.1795503]
[1744851366734,0.23274484,84218.0,84217.0,0.1797103]
[1744851369748,0.1490489,84218.0,84217.0,0.1797103]
[1744851370448,0.1187489,84218.0,84217.0,0.1797103]
[1744851370849,0.1187489,84218.0,84217.0,0.1795503]
[1744851371350,0.1187489,84218.0,84217.0,0.1797103]
[1744851371546,0.1515489,84218.0,84217.0,0.1797103]
[1744851376253,0.1515489,84218.0,84217.0,0.1795503]
[1744851376663,0.1515489,84218.0,84217.0,0.1797103]
[1744851376849,0.23468222,84218.0,84217.0,0.1797103]
[1744851380058,0.1515489,84218.0,84217.0,0.1797103]
[1744851380758,0.1515489,84218.0,84217.0,0.1795503]
[1744851381262,0.1515489,84218.0,84217.0,0.1797103]
[1744851385765,0.1515489,84218.0,84217.0,0.1795503]
[1744851386167,0.1515489,84218.0,84217.0,0.1797103]
[1744851390774,0.1515489,84218.0,84217.0,0.1795503]
[1744851391680,0.1515489,84218.0,84217.0,0.1797103]
[1744851395881,0.05938,84211.0,84203.0,0.01]
[1744851396079,0.3936,84218.0,84203.0,0.04]
[1744851396080,0.1187687,84204.0,84203.0,0.04]
[1744851396378,0.1187687,84204.0,84203.0,0.07126]
[1744851396770,0.1187687,84204.0,84203.0,0.1901101]
[1744851396968,0.1818687,84204.0,84203.0,0.1901101]
[1744851397969,0.1501687,84204.0,84203.0,0.1901101]
[1744851398375,0.1187687,84204.0,84203.0,0.1901101]
[1744851400878,0.1187687,84204.0,84203.0,0.1898701]
[1744851401265,0.1187687,84204.0,84203.0,0.1900301]
[1744851403880,0.18179606,84205.0,84204.0,0.1187687]
[1744851404177,0.18179606,84205.0,84204.0,0.3425687]
[1744851405377,0.30056326,84205.0,84204.0,0.3425687]
[1744851405879,0.18179606,84205.0,84204.0,0.3425687]
[1744851406279,0.18179606,84205.0,84204.0,0.3427287]
[1744851406575,0.18179606,84205.0,84204.0,0.3428087]
[1744851406782,8e-05,84218.0,84211.0,0.1187588]
[1744851406967,0.3608,84223.0,84222.0,0.1187433]
[1744851407166,0.3608,84223.0,84222.0,0.2787433]
[1744851407366,0.4795419,84223.0,84222.0,0.2787433]
[1744851407581,0.4796219,84223.0,84222.0,0.2787433]
[1744851407773,0.4796219,84223.0,84222.0,0.3418433]
[1744851408169,0.36088,84223.0,84222.0,0.3418433]
[1744851409573,8e-05,84223.0,84222.0,0.3418433]
[1744851410073,0.3608,84230.0,84229.0,0.1187334]
[1744851410273,0.3608,84230.0,84229.0,0.2987334]
[1744851410572,0.36088,84230.0,84229.0,0.2987334]
[1744851410969,0.3608,84230.0,84229.0,0.3914334]
[1744851411171,8e-05,84230.0,84229.0,0.3914334]
[1744851411379,8e-05,84230.0,84229.0,0.4014334]
[1744851411577,8e-05,84230.0,84229.0,0.4790334]
[1744851411780,0.00017809,84231.0,84230.0,0.118732]
[1744851411977,0.00017809,84231.0,84230.0,0.288732]
[1744851412178,0.00017809,84231.0,84230.0,0.351432]
[1744851413689,0.00010801,84236.0,84235.0,0.1187249]
[1744851413979,0.00010801,84236.0,84235.0,0.6395249]
[1744851414192,0.00010801,84236.0,84235.0,0.7042249]
[1744851414575,0.1624832,84248.0,84247.0,0.118708]
[1744851414780,0.1624832,84248.0,84247.0,0.298708]
[1744851415290,0.1507075,84248.0,84247.0,0.298708]
[1744851415486,0.1507075,84248.0,84247.0,0.363408]
[1744851416478,0.16283679,84248.0,84247.0,0.363408]
[1744851418089,0.16283679,84248.0,84247.0,0.183408]
[1744851418282,0.19533679,84248.0,84247.0,0.183408]
[1744851418990,0.19533679,84248.0,84247.0,0.193408]
[1744851420791,0.19533679,84248.0,84247.0,0.128708]
[1744851421589,0.19533679,84248.0,84247.0,0.118708]
[1744851422087,0.1187109,84245.0,84244.0,0.0324]
[1744851422393,0.1187179,84240.0,84228.0,0.01]
[1744851422594,0.4795179,84240.0,84233.0,0.118727]
[1744851422794,0.4795179,84240.0,84231.0,0.0593647]
[1744851422982,0.1187405,84224.0,84222.0,0.0593713]
[1744851423192,0.1187447,84221.0,84220.0,0.1187453]
[1744851424187,0.1187447,84221.0,84220.0,0.1188253]
[1744851424489,0.1187447,84221.0,84220.0,0.1187453]
[1744851425187,0.1187447,84221.0,84220.0,0.1188253]
[1744851425784,0.1187447,84221.0,84220.0,0.1829253]
[1744851425984,0.1187447,84221.0,84220.0,0.1828453]
[1744851427581,0.1187447,84221.0,84220.0,0.3328453]
[1744851427782,0.1187447,84221.0,84220.0,0.1828453]
[1744851433392,0.00017809,84229.0,84223.0,0.0593708]
[1744851433596,0.00017809,84229.0,84228.0,0.1187348]
[1744851433891,0.00017809,84229.0,84228.0,0.2887348]
[1744851434493,0.00025809,84229.0,84228.0,0.2887348]
[1744851434688,0.00025809,84229.0,84228.0,0.3219348]
[1744851437189,9e-08,84229.0,84228.0,0.3219348]
[1744851437400,0.4114,84240.0,84239.0,0.1187193]
[1744851437699,0.4114,84240.0,84239.0,0.2687193]
[1744851438403,0.4114,84240.0,84239.0,0.3330193]
[1744851439197,0.18082782,84242.0,84239.0,0.3330193]
[1744851439198,0.18082782,84242.0,84241.0,0.1187165]
[1744851439399,0.21312782,84242.0,84241.0,0.1187165]
[1744851439993,0.21312782,84242.0,84241.0,0.2687165]
[1744851440800,0.0323,84242.0,84241.0,0.2687165]
[1744851441903,0.18082782,84243.0,84242.0,0.1187151]
[1744851442202,0.18090782,84243.0,84242.0,0.3304151]
[1744851443402,0.18082782,84243.0,84242.0,0.3304151]
[1744851443702,0.18090782,84243.0,84242.0,0.3304151]
[1744851444208,1e-07,84243.0,84242.0,0.3304151]
[1744851444590,0.00017809,84248.0,84247.0,0.118708]
[1744851444802,0.00017809,84248.0,84247.0,0.288708]
[1744851444995,0.00017809,84248.0,84247.0,0.649508]
[1744851445602,0.00025809,84248.0,84247.0,0.713908]
[1744851446506,0.005,84254.0,84253.0,0.1186996]
[1744851446804,0.00010801,84255.0,84254.0,0.1186982]
[1744851447003,0.031,84263.0,84257.0,0.1186939]
[1744851447202,0.03110801,84263.0,84257.0,0.6494939]
[1744851448604,0.03110801,84263.0,84262.0,0.1186869]
[1744851448802,0.03110801,84263.0,84262.0,0.2786869]
[1744851449004,0.14979351,84263.0,84262.0,0.16]
[1744851449203,0.1186911,84259.0,84258.0,0.0593461]
[1744851449505,0.5388372,84259.0,84258.0,0.0593461]
[1744851450103,0.5703372,84259.0,84258.0,0.0593461]
[1744851450804,0.1187038,84250.0,84249.0,0.11888009]
[1744851451508,0.1812038,84250.0,84249.0,0.11888009]
[1744851453906,0.1812038,84250.0,84249.0,0.14948009]
[1744851456097,0.1812038,84250.0,84249.0,0.11888009]
[1744851456313,0.118721,84243.0,84242.0,0.1780613]
[1744851456604,0.479521,84243.0,84242.0,0.2374179]
[1744851457310,0.543721,84243.0,84242.0,0.2374179]
[1744851459608,0.3929,84243.0,84242.0,0.2374179]
[1744851459807,0.3929,84243.0,84242.0,0.3874179]
[1744851459808,0.0321,84243.0,84242.0,0.3874179]
[1744851460207,0.1508137,84243.0,84242.0,0.3874179]
[1744851469517,0.1508137,84243.0,84242.0,0.15]
[1744851469708,0.0321,84243.0,84235.0,0.3608]
[1744851469906,0.1187249,84235.0,84234.0,0.11890449]
[1744851470311,0.1488249,84235.0,84234.0,0.11890449]
[1744851470814,0.1811249,84235.0,84234.0,0.11890449]
[1744851471011,0.1811249,84235.0,84234.0,0.00017809]
[1744851472204,0.19275605,84235.0,84234.0,0.00017809]
[1744851472406,0.1811249,84235.0,84234.0,0.00017809]
[1744851472614,0.1488249,84235.0,84234.0,0.00017809]
[1744851472922,0.1488249,84235.0,84234.0,0.11890449]
[1744851473614,0.1488249,84235.0,84234.0,0.12890449]
[1744851478819,0.1488249,84235.0,84234.0,0.11890449]
[1744851481624,0.1488249,84235.0,84234.0,0.12890449]
[1744851483025,0.1187249,84235.0,84234.0,0.12890449]
[1744851483423,0.1188049,84235.0,84234.0,0.12890449]
[1744851483618,8e-05,84235.0,84234.0,0.12890449]
[1744851483826,0.4795221,84237.0,84236.0,0.1187235]
[1744851484011,0.4795221,84237.0,84236.0,0.2787235]
[1744851484415,0.4796021,84237.0,84236.0,0.3743235]
[1744851489226,0.55766165,84237.0,84236.0,0.3743235]
[1744851490022,0.43893955,84237.0,84236.0,0.3743235]
[1744851490529,0.07813955,84237.0,84236.0,0.3743235]
[1744851491522,0.19678165,84237.0,84236.0,0.3743235]
[1744851491722,0.19686165,84237.0,84236.0,0.3743235]
[1744851492723,0.1188021,84237.0,84236.0,0.3743235]
[1744851494924,8e-05,84237.0,84236.0,0.3743235]
[1744851495925,0.1188021,84237.0,84236.0,0.3743235]
[1744851497126,8e-05,84237.0,84236.0,0.3743235]
[1744851497324,0.1188021,84237.0,84236.0,0.3743235]
[1744851498228,8e-05,84237.0,84236.0,0.3743235]
[1744851498826,0.1188021,84237.0,84236.0,0.3743235]
[1744851499428,8e-05,84237.0,84236.0,0.3743235]
[1744851503932,8e-05,84237.0,84236.0,0.3843235]
[1744851504439,0.07784421,84243.0,84242.0,0.1187151]
[1744851504732,0.07795222,84243.0,84242.0,0.2787151]
[1744851504921,0.07784421,84243.0,84242.0,0.2787151]
[1744851505121,0.07792421,84243.0,84242.0,0.2787151]
[1744851505334,0.07792421,84243.0,84242.0,0.3404151]
[1744851505933,0.07784421,84243.0,84242.0,0.7012151]
[1744851506128,0.07792421,84243.0,84242.0,0.7012151]
[1744851506930,8e-05,84243.0,84242.0,0.7012151]
[1744851509532,0.00017809,84251.0,84250.0,0.1187038]
[1744851509733,0.00017809,84251.0,84250.0,0.2787038]
[1744851510434,0.14888049,84251.0,84250.0,0.3443038]
[1744851510641,0.03017809,84251.0,84250.0,0.2787038]
[1744851511026,0.00017809,84251.0,84250.0,0.2787038]
[1744851511232,0.00017809,84251.0,84250.0,0.3100038]
[1744851512440,0.00017809,84251.0,84250.0,0.32214676]
[1744851512633,0.00025809,84251.0,84250.0,0.32214676]
[1744851513832,0.00025809,84251.0,84250.0,0.35474676]
[1744851514030,0.00017809,84251.0,84250.0,0.35474676]
[1744851514228,0.00025809,84251.0,84250.0,0.35474676]
[1744851514438,0.00017809,84251.0,84250.0,0.35474676]
[1744851514634,0.00025809,84251.0,84250.0,0.35474676]
[1744851514943,0.00025809,84251.0,84250.0,0.3426038]
[1744851515942,0.00025809,84251.0,84250.0,0.35458992]
[1744851521150,0.00025809,84251.0,84250.0,0.3426038]
[1744851523351,0.00025809,84251.0,84250.0,0.7034038]
[1744851524854,0.00025809,84251.0,84250.0,0.3426038]
[1744851525055,0.00025809,84251.0,84250.0,0.7034038]
[1744851525260,0.00025809,84251.0,84250.0,0.3426038]
[1744851525552,0.03145809,84251.0,84250.0,0.7034038]
[1744851526547,0.03145809,84251.0,84250.0,0.3426038]
[1744851526759,0.03145809,84251.0,84250.0,0.7034038]
[1744851530456,0.03137809,84251.0,84250.0,0.7034038]
[1744851531246,0.03145809,84251.0,84250.0,0.7034038]
[1744851535061,0.03,84257.0,84256.0,0.1186954]
[1744851535260,0.00010801,84258.0,84257.0,0.1186939]
[1744851535462,0.00010801,84258.0,84257.0,0.2686939]
[1744851538161,0.00010801,84258.0,84257.0,0.6294939]
[1744851538359,0.24219862,84262.0,84257.0,0.6294939]
[1744851538560,0.24219862,84262.0,84261.0,0.1186883]
[1744851538753,0.24219862,84262.0,84261.0,0.2686883]
[1744851539157,0.24227862,84262.0,84261.0,0.2686883]
[1744851539357,0.24227862,84262.0,84261.0,0.3321883]
[1744851541455,0.06298,84262.0,84261.0,0.3321883]
[1744851543956,0.06298,84262.0,84261.0,0.2996883]
[1744851548152,0.06298,84262.0,84261.0,0.6604883]
[1744851549155,0.03128,84262.0,84261.0,0.6604883]
[1744851549466,0.0312,84262.0,84261.0,0.6604883]
[1744851550160,0.06240801,84268.0,84267.0,0.1186799]
[1744851550359,0.06240801,84268.0,84267.0,0.2786799]
[1744851552361,0.00010801,84268.0,84267.0,0.2786799]
[1744851552666,0.00010801,84268.0,84267.0,0.3408799]
[1744851552860,0.00010801,84268.0,84267.0,0.3107799]
[1744851553051,0.00010801,84268.0,84267.0,0.2786799]
[1744851553367,0.03120801,84268.0,84267.0,0.2786799]
[1744851554769,0.39200801,84268.0,84267.0,0.2786799]
[1744851555468,0.03120801,84268.0,84267.0,0.2786799]
[1744851555769,0.03120801,84268.0,84267.0,0.3090799]
[1744851556772,0.03120801,84268.0,84267.0,0.2786799]
[1744851562771,0.14988651,84268.0,84267.0,0.2786799]
[1744851564478,0.03120801,84268.0,84267.0,0.2786799]
[1744851568468,0.03120801,84268.0,84267.0,0.3089799]
[1744851571568,0.06200801,84268.0,84267.0,0.3089799]
[1744851572184,0.18068651,84268.0,84267.0,0.3089799]
[1744851576792,0.06200801,84268.0,84267.0,0.3089799]
[1744851578202,0.03120801,84268.0,84267.0,0.3089799]
[1744851578997,0.00010801,84268.0,84267.0,0.3089799]
[1744851581804,0.03050801,84268.0,84267.0,0.3089799]
[1744851584011,0.14918651,84268.0,84267.0,0.3089799]
[1744851586005,0.03050801,84268.0,84267.0,0.3089799]
[1744851586509,0.00010801,84268.0,84267.0,0.3089799]
[1744851587101,0.11878651,84268.0,84267.0,0.3089799]
[1744851591510,0.00010801,84268.0,84267.0,0.3089799]
[1744851593104,0.03240801,84268.0,84267.0,0.3089799]
[1744851593613,0.21401442,84268.0,84267.0,0.3089799]
[1744851594811,0.18171442,84268.0,84267.0,0.3089799]
[1744851596511,0.00010801,84268.0,84267.0,0.3089799]
[1744851596901,0.07907723,84271.0,84270.0,0.1186756]
[1744851597107,0.07918524,84271.0,84270.0,0.1186756]
[1744851597307,0.19785944,84271.0,84270.0,0.1186756]
[1744851597714,0.19785944,84271.0,84270.0,0.1813756]
[1744851599413,0.11878221,84271.0,84270.0,0.1813756]
[1744851600306,0.11878221,84271.0,84270.0,0.0327]
[1744851600502,0.1186785,84269.0,84268.0,0.1186756]
[1744851601114,0.1507785,84269.0,84268.0,0.1186756]
[1744851601721,0.1507785,84269.0,84268.0,0.1780147]
[1744851602121,0.1817785,84269.0,84268.0,0.2095147]
[1744851603612,0.1817785,84269.0,84268.0,0.2743147]
[1744851604220,0.1496785,84269.0,84268.0,0.2743147]
[1744851605221,0.423,84269.0,84250.0,0.16294827]
[1744851605521,0.1186911,84259.0,84258.0,0.2156918]
[1744851605720,0.1186911,84259.0,84258.0,0.2256918]
[1744851605907,0.1780372,84259.0,84258.0,0.1186925]
[1744851606111,0.1186996,84253.0,84252.0,0.032]
[1744851606321,0.13081232,84253.0,84252.0,0.1507009]
[1744851606718,0.19501232,84253.0,84252.0,0.1507009]
[1744851606915,0.118701,84252.0,84251.0,0.11887919]
[1744851607221,0.118701,84252.0,84251.0,0.00017809]
[1744851607422,0.182901,84252.0,84251.0,0.00017809]
[1744851607617,0.0593513,84251.0,84237.0,0.0694687]
[1744851607821,0.1187165,84241.0,84240.0,0.1507166]
[1744851608117,0.1187165,84241.0,84240.0,0.1824166]
[1744851608320,0.1829165,84241.0,84240.0,0.1824166]
[1744851608522,0.1517165,84241.0,84240.0,0.3524166]
[1744851608717,0.3608,84243.0,84240.0,0.3524166]
[1744851608918,0.11888529,84249.0,84248.0,0.1187066]
[1744851609224,0.11888529,84249.0,84248.0,0.2687066]
[1744851609610,0.11896529,84249.0,84248.0,0.3330066]
[1744851612626,0.11896529,84249.0,84248.0,0.0643]
[1744851612822,0.059359,84240.0,84239.0,0.22231617]
[1744851613017,0.059359,84240.0,84239.0,0.2987193]
[1744851614522,0.059359,84240.0,84239.0,0.3628193]
[1744851615122,0.3608,84247.0,84243.0,0.0593567]
[1744851615326,0.1506103,84246.0,84245.0,0.1187109]
[1744851615523,0.0319,84246.0,84245.0,0.2987109]
[1744851615727,8e-05,84247.0,84246.0,0.1187094]
[1744851615924,8e-05,84247.0,84246.0,0.2987094]
[1744851616413,0.118788,84247.0,84246.0,0.2987094]
[1744851618226,8e-05,84247.0,84246.0,0.2987094]
[1744851619731,0.118788,84247.0,84246.0,0.2987094]
[1744851620016,0.118788,84247.0,84246.0,0.1187094]
[1744851620215,0.118788,84247.0,84246.0,0.2687094]
[1744851620430,0.479588,84247.0,84246.0,0.15]
[1744851620730,0.1187151,84242.0,84241.0,0.1187161]
[1744851621519,0.1823151,84242.0,84241.0,0.1187161]
[1744851624025,0.1498151,84242.0,84241.0,0.1187161]
[1744851625428,0.1498151,84242.0,84241.0,0.2687161]
[1744851626223,0.1498951,84242.0,84241.0,0.2687161]
[1744851626428,0.1498951,84242.0,84241.0,0.1187161]
[1744851626828,0.1780753,84241.0,84240.0,0.1187179]
[1744851627033,0.2082753,84241.0,84240.0,0.1187179]
[1744851627228,0.2397753,84241.0,84240.0,0.1187179]
[1744851631735,0.2397753,84241.0,84240.0,0.1518179]
[1744851634038,0.2397753,84241.0,84240.0,0.1828179]
[1744851636233,0.3169353,84241.0,84240.0,0.1828179]
[1744851639432,0.3169353,84241.0,84240.0,0.1518179]
[1744851639632,0.3169353,84241.0,84240.0,0.1187179]
[1744851639838,0.1187207,84239.0,84238.0,0.11872]
[1744851640237,0.1828207,84239.0,84238.0,0.11872]
[1744851645342,0.1187207,84238.0,84237.0,0.1188021]
[1744851645545,0.1187207,84238.0,84237.0,0.1187221]
[1744851645850,0.1833207,84238.0,84237.0,0.1187221]
[1744851646442,0.1833207,84238.0,84237.0,0.1487221]
[1744851647044,0.1833207,84238.0,84237.0,0.1808221]
[1744851647236,0.1514207,84238.0,84237.0,0.1808221]
[1744851655444,0.1514207,84238.0,84237.0,0.0621]
[1744851656044,0.1514207,84238.0,84237.0,0.03008]
[1744851656247,0.1514207,84238.0,84237.0,0.00066781]
[1744851656448,0.1187278,84233.0,84232.0,0.00017809]
[1744851656650,0.1187376,84228.0,84225.0,0.00510534]
[1744851656959,0.2553054,84228.0,84227.0,0.118736]
[1744851657157,0.1365678,84228.0,84226.0,0.0654]
[1744851657357,0.1187376,84226.0,84225.0,0.00518534]
[1744851657660,0.4795376,84226.0,84225.0,0.00510534]
[1744851658146,0.1187433,84222.0,84221.0,0.000108]
[1744851658348,0.1187433,84222.0,84217.0,0.00017809]
[1744851658550,0.3608,84218.0,84217.0,0.00017809]
[1744851658854,0.3608,84218.0,84217.0,0.06327809]
[1744851659155,0.4795489,84218.0,84217.0,0.06327809]
[1744851661757,0.4795489,84218.0,84217.0,0.06335809]
[1744851662555,0.4795489,84218.0,84217.0,0.00025809]
[1744851663058,0.4795489,84218.0,84217.0,0.00017809]
[1744851663259,0.4795489,84218.0,84217.0,0.00025809]
[1744851665861,0.4795489,84218.0,84217.0,0.00017809]
[1744851669167,0.4795489,84218.0,84217.0,0.11892839]
[1744851671164,0.5567089,84218.0,84217.0,0.11892839]
[1744851673867,0.5567089,84218.0,84217.0,0.00017809]
[1744851674265,0.5567089,84218.0,84217.0,0.11892839]
[1744851675968,0.5567089,84218.0,84217.0,0.15112839]
[1744851677868,0.5567089,84218.0,84217.0,0.30112839]
[1744851678171,0.5567089,84218.0,84217.0,0.15112839]
[1744851683173,0.4795489,84218.0,84217.0,0.15112839]
[1744851683470,0.5567089,84218.0,84217.0,0.15112839]
[1744851683970,0.5886089,84218.0,84217.0,0.15112839]
[1744851689274,0.5886089,84218.0,84217.0,0.03237809]
[1744851689669,0.2375309,84209.0,84208.0,0.1187564]
[1744851690675,0.2375309,84209.0,84208.0,0.2112378]
[1744851690875,0.2375309,84209.0,84208.0,0.2722378]
[1744851691977,0.2375309,84209.0,84208.0,0.0637]
[1744851692178,0.118763,84208.0,84207.0,0.00026572]
[1744851692380,0.208845,84208.0,84207.0,0.1187644]
[1744851692573,0.241945,84208.0,84207.0,0.1187644]
[1744851693180,0.241945,84208.0,84207.0,0.1188444]
[1744851693679,0.963545,84208.0,84207.0,0.1188444]
[1744851695983,0.0593829,84206.0,84202.0,0.0001458]
[1744851696186,0.1187771,84198.0,84189.0,0.01]
[1744851696380,0.1187771,84198.0,84182.0,0.00904749]
[1744851696381,0.1187814,84195.0,84194.0,0.1801821]
[1744851696581,0.4795814,84195.0,84194.0,0.1901821]
[1744851696885,0.4795814,84195.0,84194.0,0.0714]
[1744851697283,0.4795814,84195.0,84194.0,0.0614]
[1744851698788,0.1187856,84192.0,84191.0,0.000108]
[1744851699588,0.1187926,84187.0,84186.0,0.00037492]
[1744851699785,0.4895926,84187.0,84186.0,0.01098327]
[1744851699989,0.4895926,84187.0,84186.0,0.12897209]
[1744851700187,0.4895926,84187.0,84186.0,0.11905209]
[1744851700383,0.5534926,84187.0,84186.0,0.00025809]
[1744851702087,0.5534926,84187.0,84186.0,0.03335809]
[1744851704296,0.1187969,84184.0,84183.0,0.000108]
[1744851704596,0.1188039,84180.0,84179.0,0.118803]
[1744851704796,0.1188039,84180.0,84179.0,0.201103]
[1744851705094,0.1288039,84180.0,84179.0,0.201103]
[1744851705495,0.1593039,84180.0,84179.0,0.201103]
[1744851706495,0.5201039,84180.0,84179.0,0.201103]
[1744851708398,0.5201039,84180.0,84179.0,0.181103]
[1744851708598,0.5211039,84180.0,84179.0,0.353103]
[1744851708987,0.5211039,84180.0,84179.0,0.193103]
[1744851709694,0.1187911,84189.0,84184.0,0.0593978]
[1744851709887,8e-05,84205.0,84194.0,0.1187828]
[1744851710087,8e-05,84205.0,84194.0,0.2987828]
[1744851710288,0.1187692,84204.0,84194.0,0.2987828]
[1744851710589,0.07858307,84206.0,84194.0,0.3714828]
[1744851710786,0.1187679,84205.0,84194.0,0.3714828]
[1744851710990,0.1187697,84204.0,84194.0,0.3714828]
[1744851711494,0.00117809,84195.0,84194.0,0.3784828]
[1744851711693,0.0329,84211.0,84210.0,0.1187602]
[1744851711999,0.1517388,84211.0,84210.0,0.2787602]
[1744851712599,0.1517388,84211.0,84210.0,0.3445602]
[1744851712992,0.1517388,84211.0,84210.0,0.3465602]
[1744851713502,0.1517388,84211.0,84210.0,0.1865602]
[1744851714401,0.1517388,84211.0,84210.0,0.00208]
[1744851715096,0.1517388,84211.0,84210.0,0.002]
[1744851715401,0.1517388,84211.0,84210.0,0.00208]
[1744851715995,0.1842388,84211.0,84210.0,0.00208]
[1744851717196,0.1842388,84211.0,84210.0,0.1208402]
[1744851718799,0.1842388,84211.0,84210.0,0.00208]
[1744851719305,0.1842388,84211.0,84210.0,0.03428]
[1744851719605,0.1842388,84211.0,84210.0,0.06578]
[1744851720401,0.2158388,84211.0,84210.0,0.03358]
[1744851720596,0.2158388,84211.0,84210.0,0.00208]
[1744851723301,0.1187701,84203.0,84202.0,0.00017809]
[1744851723500,0.4795701,84203.0,84202.0,0.00017809]
[1744851723809,0.118787,84192.0,84191.0,0.1187863]
[1744851724012,0.1187969,84184.0,84183.0,0.0633]
[1744851724304,0.4795969,84184.0,84183.0,0.0952]
[1744851724810,0.4795969,84184.0,84183.0,0.09528]
[1744851725304,0.4805969,84184.0,84183.0,0.2250775]
[1744851725700,0.4805969,84184.0,84183.0,0.2249975]
[1744851726500,0.4805969,84184.0,84183.0,0.011]
[1744851726902,0.4805969,84184.0,84183.0,0.1297983]
[1744851727215,0.4805969,84184.0,84183.0,0.011]
[1744851727413,0.4805969,84184.0,84183.0,0.01108]
[1744851727909,0.4805969,84184.0,84183.0,0.1298783]
[1744851728307,0.4805969,84184.0,84183.0,0.01108]